Workbook

Sheet 2019 Base Year (Reference)
A4: EB-2021-XXXX
A5: Sheet I8 Demand Data Worksheet -
A14: CP TEST RESULTS | C14: -
A15: NCP TEST RESULTS | C15: -
A17: Co-incident Peak | C17: Indicator
A18: 1 CP | C18: CP 1
A19: 4 CP | C19: CP 4
A20: 12 CP | C20: CP 12
A22: 4 NCP | C22: NCP 4
A23: 12 NCP | C23: NCP 12
A24: Non-co-incident Peak | C24: Indicator
A25: 1 NCP | C25: NCP 1
A26: 4 NCP | C26: NCP 4
A27: 12 NCP | C27: NCP 12
D30: 1 | E30: 2 | F30: 3 | G30: 4 | H30: 5 | I30: 6 | J30: 7 | K30: 8 | L30: 9 | M30: 10 | N30: 11 | O30: 12 | P30: 13 | Q30: 14 | R30: 15 | S30: 16 | T30: 17 | U30: 18 | V30: 19 | W30: 20
A31: Customer Classes | C31: Total | D31: Residential | E31: GS <50 | F31: GS>50-Regular | G31: GS> 50-TOU | H31: GS >50-Intermediate | I31: Large Use >5MW | J31: Street Light | K31: Sentinel | L31: Unmetered Scattered Load | M31: Embedded Distributor | N31: Back-up/Standby Power | O31: Rate Class 1 | P31: Rate class 2 | Q31: Rate class 3 | R31: Rate class 4 | S31: Rate class 5 | T31: Rate class 6 | U31: Rate class 7 | V31: Rate class 8 | W31: Rate class 9
C34: CP Sanity Check | D34: =IF(MAX(D38,D39,D40)>D55,"Check 1 CP",IF(MAX(D43,D44,D45)>D61,"Check 4 CP",IF(MAX(D48,D49,D50)>D67,"Check 12 CP","Pass"))) -> Pass | E34: =IF(MAX(E38,E39,E40)>E55,"Check 1 CP",IF(MAX(E43,E44,E45)>E61,"Check 4 CP",IF(MAX(E48,E49,E50)>E67,"Check 12 CP","Pass"))) -> Pass | F34: =IF(MAX(F38,F39,F40)>F55,"Check 1 CP",IF(MAX(F43,F44,F45)>F61,"Check 4 CP",IF(MAX(F48,F49,F50)>F67,"Check 12 CP","Pass"))) -> Pass | G34: =IF(MAX(G38,G39,G40)>G55,"Check 1 CP",IF(MAX(G43,G44,G45)>G61,"Check 4 CP",IF(MAX(G48,G49,G50)>G67,"Check 12 CP","Pass"))) -> Pass | H34: =IF(MAX(H38,H39,H40)>H55,"Check 1 CP",IF(MAX(H43,H44,H45)>H61,"Check 4 CP",IF(MAX(H48,H49,H50)>H67,"Check 12 CP","Pass"))) -> Pass | I34: =IF(MAX(I38,I39,I40)>I55,"Check 1 CP",IF(MAX(I43,I44,I45)>I61,"Check 4 CP",IF(MAX(I48,I49,I50)>I67,"Check 12 CP","Pass"))) -> Pass | J34: =IF(MAX(J38,J39,J40)>J55,"Check 1 CP",IF(MAX(J43,J44,J45)>J61,"Check 4 CP",IF(MAX(J48,J49,J50)>J67,"Check 12 CP","Pass"))) -> Pass | K34: =IF(MAX(K38,K39,K40)>K55,"Check 1 CP",IF(MAX(K43,K44,K45)>K61,"Check 4 CP",IF(MAX(K48,K49,K50)>K67,"Check 12 CP","Pass"))) -> Pass | L34: =IF(MAX(L38,L39,L40)>L55,"Check 1 CP",IF(MAX(L43,L44,L45)>L61,"Check 4 CP",IF(MAX(L48,L49,L50)>L67,"Check 12 CP","Pass"))) -> Pass | M34: =IF(MAX(M38,M39,M40)>M55,"Check 1 CP",IF(MAX(M43,M44,M45)>M61,"Check 4 CP",IF(MAX(M48,M49,M50)>M67,"Check 12 CP","Pass"))) -> Pass | N34: =IF(MAX(N38,N39,N40)>N55,"Check 1 CP",IF(MAX(N43,N44,N45)>N61,"Check 4 CP",IF(MAX(N48,N49,N50)>N67,"Check 12 CP","Pass"))) -> Pass | O34: =IF(MAX(O38,O39,O40)>O55,"Check 1 CP",IF(MAX(O43,O44,O45)>O61,"Check 4 CP",IF(MAX(O48,O49,O50)>O67,"Check 12 CP","Pass"))) -> Pass | P34: =IF(MAX(P38,P39,P40)>P55,"Check 1 CP",IF(MAX(P43,P44,P45)>P61,"Check 4 CP",IF(MAX(P48,P49,P50)>P67,"Check 12 CP","Pass"))) -> Pass | Q34: =IF(MAX(Q38,Q39,Q40)>Q55,"Check 1 CP",IF(MAX(Q43,Q44,Q45)>Q61,"Check 4 CP",IF(MAX(Q48,Q49,Q50)>Q67,"Check 12 CP","Pass"))) -> Pass | R34: =IF(MAX(R38,R39,R40)>R55,"Check 1 CP",IF(MAX(R43,R44,R45)>R61,"Check 4 CP",IF(MAX(R48,R49,R50)>R67,"Check 12 CP","Pass"))) -> Pass | S34: =IF(MAX(S38,S39,S40)>S55,"Check 1 CP",IF(MAX(S43,S44,S45)>S61,"Check 4 CP",IF(MAX(S48,S49,S50)>S67,"Check 12 CP","Pass"))) -> Pass | T34: =IF(MAX(T38,T39,T40)>T55,"Check 1 CP",IF(MAX(T43,T44,T45)>T61,"Check 4 CP",IF(MAX(T48,T49,T50)>T67,"Check 12 CP","Pass"))) -> Pass | U34: =IF(MAX(U38,U39,U40)>U55,"Check 1 CP",IF(MAX(U43,U44,U45)>U61,"Check 4 CP",IF(MAX(U48,U49,U50)>U67,"Check 12 CP","Pass"))) -> Pass | V34: =IF(MAX(V38,V39,V40)>V55,"Check 1 CP",IF(MAX(V43,V44,V45)>V61,"Check 4 CP",IF(MAX(V48,V49,V50)>V67,"Check 12 CP","Pass"))) -> Pass | W34: =IF(MAX(W38,W39,W40)>W55,"Check 1 CP",IF(MAX(W43,W44,W45)>W61,"Check 4 CP",IF(MAX(W48,W49,W50)>W67,"Check 12 CP","Pass"))) -> Pass
A35: CO-INCIDENT PEAK
A37: 1 CP
A38: Transformation CP | B38: TCP1 | C38: =SUM(D38:W38) -> 54279.56244 | D38: 28507.2641 | E38: 8339.451209 | F38: 17114.34879 | J38: 275.4546416 | L38: 43.04369464
A39: Bulk Delivery CP | B39: BCP1 | C39: =SUM(D39:W39) -> 54279.56244 | D39: =D38 -> 28507.2641 | E39: =E38 -> 8339.451209 | F39: =F38 -> 17114.34879 | G39: =G38 -> 0 | H39: =H38 -> 0 | I39: =I38 -> 0 | J39: =J38 -> 275.4546416 | K39: =K38 -> 0 | L39: =L38 -> 43.04369464
A40: Total Sytem CP | B40: DCP1 | C40: =SUM(D40:W40) -> 54279.56244 | D40: =D39 -> 28507.2641 | E40: =E39 -> 8339.451209 | F40: =F39 -> 17114.34879 | G40: =G39 -> 0 | H40: =H39 -> 0 | I40: =I39 -> 0 | J40: =J39 -> 275.4546416 | K40: =K39 -> 0 | L40: =L39 -> 43.04369464
A42: 4 CP
A43: Transformation CP | B43: TCP4 | C43: =SUM(D43:W43) -> 213217.5722 | D43: 105596.1627 | E43: 33850.92725 | F43: 73039.37784 | J43: 550.9092832 | L43: 180.1950755
A44: Bulk Delivery CP | B44: BCP4 | C44: =SUM(D44:W44) -> 213217.5722 | D44: =D43 -> 105596.1627 | E44: =E43 -> 33850.92725 | F44: =F43 -> 73039.37784 | G44: =G43 -> 0 | H44: =H43 -> 0 | I44: =I43 -> 0 | J44: =J43 -> 550.9092832 | K44: =K43 -> 0 | L44: =L43 -> 180.1950755
A45: Total Sytem CP | B45: DCP4 | C45: =SUM(D45:W45) -> 213217.5722 | D45: =D44 -> 105596.1627 | E45: =E44 -> 33850.92725 | F45: =F44 -> 73039.37784 | G45: =G44 -> 0 | H45: =H44 -> 0 | I45: =I44 -> 0 | J45: =J44 -> 550.9092832 | K45: =K44 -> 0 | L45: =L44 -> 180.1950755
A47: 12 CP
A48: Transformation CP | B48: TCP12 | C48: =SUM(D48:W48) -> 584045.1494 | D48: 271802.1957 | E48: 88636.34901 | F48: 221410.8172 | J48: 1652.727849 | L48: 543.0596053
A49: Bulk Delivery CP | B49: BCP12 | C49: =SUM(D49:W49) -> 584045.1494 | D49: =D48 -> 271802.1957 | E49: =E48 -> 88636.34901 | F49: =F48 -> 221410.8172 | G49: =G48 -> 0 | H49: =H48 -> 0 | I49: =I48 -> 0 | J49: =J48 -> 1652.727849 | K49: =K48 -> 0 | L49: =L48 -> 543.0596053
A50: Total Sytem CP | B50: DCP12 | C50: =SUM(D50:W50) -> 584045.1494 | D50: =D49 -> 271802.1957 | E50: =E49 -> 88636.34901 | F50: =F49 -> 221410.8172 | G50: =G49 -> 0 | H50: =H49 -> 0 | I50: =I49 -> 0 | J50: =J49 -> 1652.727849 | K50: =K49 -> 0 | L50: =L49 -> 543.0596053
A52: NON CO_INCIDENT PEAK
C53: NCP Sanity Check | D53: =IF(OR(D55*4<D61,D56*4<D62,D57*4<D63,D58*4<D64),IF(OR(D55*12<D67,D56*12<D68,D57*12<D69,D58*12<D70),"Check 4 NCP and 12 NCP","Check 4 NCP"),IF(OR(D55*12<D67,D56*12<D68,D57*12<D69,D58*12<D70),"Check 12 NCP","Pass")) -> Pass | E53: =IF(OR(E55*4<E61,E56*4<E62,E57*4<E63,E58*4<E64),IF(OR(E55*12<E67,E56*12<E68,E57*12<E69,E58*12<E70),"Check 4 NCP and 12 NCP","Check 4 NCP"),IF(OR(E55*12<E67,E56*12<E68,E57*12<E69,E58*12<E70),"Check 12 NCP","Pass")) -> Pass | F53: =IF(OR(F55*4<F61,F56*4<F62,F57*4<F63,F58*4<F64),IF(OR(F55*12<F67,F56*12<F68,F57*12<F69,F58*12<F70),"Check 4 NCP and 12 NCP","Check 4 NCP"),IF(OR(F55*12<F67,F56*12<F68,F57*12<F69,F58*12<F70),"Check 12 NCP","Pass")) -> Pass | G53: =IF(OR(G55*4<G61,G56*4<G62,G57*4<G63,G58*4<G64),IF(OR(G55*12<G67,G56*12<G68,G57*12<G69,G58*12<G70),"Check 4 NCP and 12 NCP","Check 4 NCP"),IF(OR(G55*12<G67,G56*12<G68,G57*12<G69,G58*12<G70),"Check 12 NCP","Pass")) -> Pass | H53: =IF(OR(H55*4<H61,H56*4<H62,H57*4<H63,H58*4<H64),IF(OR(H55*12<H67,H56*12<H68,H57*12<H69,H58*12<H70),"Check 4 NCP and 12 NCP","Check 4 NCP"),IF(OR(H55*12<H67,H56*12<H68,H57*12<H69,H58*12<H70),"Check 12 NCP","Pass")) -> Pass | I53: =IF(OR(I55*4<I61,I56*4<I62,I57*4<I63,I58*4<I64),IF(OR(I55*12<I67,I56*12<I68,I57*12<I69,I58*12<I70),"Check 4 NCP and 12 NCP","Check 4 NCP"),IF(OR(I55*12<I67,I56*12<I68,I57*12<I69,I58*12<I70),"Check 12 NCP","Pass")) -> Pass | J53: =IF(OR(J55*4<J61,J56*4<J62,J57*4<J63,J58*4<J64),IF(OR(J55*12<J67,J56*12<J68,J57*12<J69,J58*12<J70),"Check 4 NCP and 12 NCP","Check 4 NCP"),IF(OR(J55*12<J67,J56*12<J68,J57*12<J69,J58*12<J70),"Check 12 NCP","Pass")) -> Pass | K53: =IF(OR(K55*4<K61,K56*4<K62,K57*4<K63,K58*4<K64),IF(OR(K55*12<K67,K56*12<K68,K57*12<K69,K58*12<K70),"Check 4 NCP and 12 NCP","Check 4 NCP"),IF(OR(K55*12<K67,K56*12<K68,K57*12<K69,K58*12<K70),"Check 12 NCP","Pass")) -> Pass | L53: =IF(OR(L55*4<L61,L56*4<L62,L57*4<L63,L58*4<L64),IF(OR(L55*12<L67,L56*12<L68,L57*12<L69,L58*12<L70),"Check 4 NCP and 12 NCP","Check 4 NCP"),IF(OR(L55*12<L67,L56*12<L68,L57*12<L69,L58*12<L70),"Check 12 NCP","Pass")) -> Pass | M53: =IF(OR(M55*4<M61,M56*4<M62,M57*4<M63,M58*4<M64),IF(OR(M55*12<M67,M56*12<M68,M57*12<M69,M58*12<M70),"Check 4 NCP and 12 NCP","Check 4 NCP"),IF(OR(M55*12<M67,M56*12<M68,M57*12<M69,M58*12<M70),"Check 12 NCP","Pass")) -> Pass | N53: =IF(OR(N55*4<N61,N56*4<N62,N57*4<N63,N58*4<N64),IF(OR(N55*12<N67,N56*12<N68,N57*12<N69,N58*12<N70),"Check 4 NCP and 12 NCP","Check 4 NCP"),IF(OR(N55*12<N67,N56*12<N68,N57*12<N69,N58*12<N70),"Check 12 NCP","Pass")) -> Pass | O53: =IF(OR(O55*4<O61,O56*4<O62,O57*4<O63,O58*4<O64),IF(OR(O55*12<O67,O56*12<O68,O57*12<O69,O58*12<O70),"Check 4 NCP and 12 NCP","Check 4 NCP"),IF(OR(O55*12<O67,O56*12<O68,O57*12<O69,O58*12<O70),"Check 12 NCP","Pass")) -> Pass | P53: =IF(OR(P55*4<P61,P56*4<P62,P57*4<P63,P58*4<P64),IF(OR(P55*12<P67,P56*12<P68,P57*12<P69,P58*12<P70),"Check 4 NCP and 12 NCP","Check 4 NCP"),IF(OR(P55*12<P67,P56*12<P68,P57*12<P69,P58*12<P70),"Check 12 NCP","Pass")) -> Pass | Q53: =IF(OR(Q55*4<Q61,Q56*4<Q62,Q57*4<Q63,Q58*4<Q64),IF(OR(Q55*12<Q67,Q56*12<Q68,Q57*12<Q69,Q58*12<Q70),"Check 4 NCP and 12 NCP","Check 4 NCP"),IF(OR(Q55*12<Q67,Q56*12<Q68,Q57*12<Q69,Q58*12<Q70),"Check 12 NCP","Pass")) -> Pass | R53: =IF(OR(R55*4<R61,R56*4<R62,R57*4<R63,R58*4<R64),IF(OR(R55*12<R67,R56*12<R68,R57*12<R69,R58*12<R70),"Check 4 NCP and 12 NCP","Check 4 NCP"),IF(OR(R55*12<R67,R56*12<R68,R57*12<R69,R58*12<R70),"Check 12 NCP","Pass")) -> Pass | S53: =IF(OR(S55*4<S61,S56*4<S62,S57*4<S63,S58*4<S64),IF(OR(S55*12<S67,S56*12<S68,S57*12<S69,S58*12<S70),"Check 4 NCP and 12 NCP","Check 4 NCP"),IF(OR(S55*12<S67,S56*12<S68,S57*12<S69,S58*12<S70),"Check 12 NCP","Pass")) -> Pass | T53: =IF(OR(T55*4<T61,T56*4<T62,T57*4<T63,T58*4<T64),IF(OR(T55*12<T67,T56*12<T68,T57*12<T69,T58*12<T70),"Check 4 NCP and 12 NCP","Check 4 NCP"),IF(OR(T55*12<T67,T56*12<T68,T57*12<T69,T58*12<T70),"Check 12 NCP","Pass")) -> Pass | U53: =IF(OR(U55*4<U61,U56*4<U62,U57*4<U63,U58*4<U64),IF(OR(U55*12<U67,U56*12<U68,U57*12<U69,U58*12<U70),"Check 4 NCP and 12 NCP","Check 4 NCP"),IF(OR(U55*12<U67,U56*12<U68,U57*12<U69,U58*12<U70),"Check 12 NCP","Pass")) -> Pass | V53: =IF(OR(V55*4<V61,V56*4<V62,V57*4<V63,V58*4<V64),IF(OR(V55*12<V67,V56*12<V68,V57*12<V69,V58*12<V70),"Check 4 NCP and 12 NCP","Check 4 NCP"),IF(OR(V55*12<V67,V56*12<V68,V57*12<V69,V58*12<V70),"Check 12 NCP","Pass")) -> Pass | W53: =IF(OR(W55*4<W61,W56*4<W62,W57*4<W63,W58*4<W64),IF(OR(W55*12<W67,W56*12<W68,W57*12<W69,W58*12<W70),"Check 4 NCP and 12 NCP","Check 4 NCP"),IF(OR(W55*12<W67,W56*12<W68,W57*12<W69,W58*12<W70),"Check 12 NCP","Pass")) -> Pass
A54: 1 NCP
A55: Classification NCP from Load Data Provider | B55: DNCP1 | C55: =SUM(D55:W55) -> 59753.65595 | D55: 28507.2641 | E55: 9331.373557 | F55: 21591.96794 | J55: 275.4546416 | L55: 47.59571021
A56: Primary NCP | B56: PNCP1 | C56: =SUM(D56:W56) -> 59753.65595 | D56: =D55 -> 28507.2641 | E56: =E55 -> 9331.373557 | F56: =F55 -> 21591.96794 | G56: =G55 -> 0 | H56: =H55 -> 0 | I56: =I55 -> 0 | J56: =J55 -> 275.4546416 | K56: =K55 -> 0 | L56: =L55 -> 47.59571021
A57: Line Transformer NCP | B57: LTNCP1 | C57: =SUM(D57:W57) -> 46941.63669 | D57: =D56 -> 28507.2641 | E57: =E56 -> 9331.373557 | F57: 8779.948678 | G57: =G56 -> 0 | H57: =H56 -> 0 | I57: =I56 -> 0 | J57: =J56 -> 275.4546416 | K57: =K56 -> 0 | L57: =L56 -> 47.59571021
A58: Secondary NCP | B58: SNCP1 | C58: =SUM(D58:W58) -> 46941.63669 | D58: =D57 -> 28507.2641 | E58: =E57 -> 9331.373557 | F58: =F57 -> 8779.948678 | G58: =G57 -> 0 | H58: =H57 -> 0 | I58: =I57 -> 0 | J58: =J57 -> 275.4546416 | K58: =K57 -> 0 | L58: =L57 -> 47.59571021
A60: 4 NCP
A61: Classification NCP from Load Data Provider | B61: DNCP4 | C61: =SUM(D61:W61) -> 227633.2839 | D61: 107784.2278 | E61: 34960.68607 | F61: 83598.37352 | J61: 1101.818566 | L61: 188.1779741
A62: Primary NCP | B62: PNCP4 | C62: =SUM(D62:W62) -> 227633.2839 | D62: =D61 -> 107784.2278 | E62: =E61 -> 34960.68607 | F62: =F61 -> 83598.37352 | G62: =G61 -> 0 | H62: =H61 -> 0 | I62: =I61 -> 0 | J62: =J61 -> 1101.818566 | K62: =K61 -> 0 | L62: =L61 -> 188.1779741
A63: Line Transformer NCP | B63: LTNCP4 | C63: =SUM(D63:W63) -> 178028.5432 | D63: =D62 -> 107784.2278 | E63: =E62 -> 34960.68607 | F63: 33993.63278 | G63: =G62 -> 0 | H63: =H62 -> 0 | I63: =I62 -> 0 | J63: =J62 -> 1101.818566 | K63: =K62 -> 0 | L63: =L62 -> 188.1779741
A64: Secondary NCP | B64: SNCP4 | C64: =SUM(D64:W64) -> 178028.5432 | D64: =D63 -> 107784.2278 | E64: =E63 -> 34960.68607 | F64: =F63 -> 33993.63278 | G64: =G63 -> 0 | H64: =H63 -> 0 | I64: =I63 -> 0 | J64: =J63 -> 1101.818566 | K64: =K63 -> 0 | L64: =L63 -> 188.1779741
A66: 12 NCP
A67: Classification NCP from Load Data Provider | B67: DNCP12 | C67: =SUM(D67:W67) -> 620957.9932 | D67: 283805.0592 | E67: 92882.99069 | F67: 240421.4281 | J67: 3305.455599 | L67: 543.0596053
A68: Primary NCP | B68: PNCP12 | C68: =SUM(D68:W68) -> 620957.9932 | D68: =D67 -> 283805.0592 | E68: =E67 -> 92882.99069 | F68: =F67 -> 240421.4281 | G68: =G67 -> 0 | H68: =H67 -> 0 | I68: =I67 -> 0 | J68: =J67 -> 3305.455599 | K68: =K67 -> 0 | L68: =L67 -> 543.0596053
A69: Line Transformer NCP | B69: LTNCP12 | C69: =SUM(D69:W69) -> 478299.2056 | D69: =D68 -> 283805.0592 | E69: =E68 -> 92882.99069 | F69: 97762.64052 | G69: =G68 -> 0 | H69: =H68 -> 0 | I69: =I68 -> 0 | J69: =J68 -> 3305.455599 | K69: =K68 -> 0 | L69: =L68 -> 543.0596053
A70: Secondary NCP | B70: SNCP12 | C70: =SUM(D70:W70) -> 478299.2056 | D70: =D69 -> 283805.0592 | E70: =E69 -> 92882.99069 | F70: =F69 -> 97762.64052 | G70: =G69 -> 0 | H70: =H69 -> 0 | I70: =I69 -> 0 | J70: =J69 -> 3305.455599 | K70: =K69 -> 0 | L70: =L69 -> 543.0596053

Sheet i. 2020 Base Year
A4: EB-2021-XXXX
A5: Sheet I8 Demand Data Worksheet -
A14: CP TEST RESULTS | C14: -
A15: NCP TEST RESULTS | C15: -
A17: Co-incident Peak | C17: Indicator
A18: 1 CP | C18: CP 1
A19: 4 CP | C19: CP 4
A20: 12 CP | C20: CP 12
A22: 4 NCP | C22: NCP 4
A23: 12 NCP | C23: NCP 12
A24: Non-co-incident Peak | C24: Indicator
A25: 1 NCP | C25: NCP 1
A26: 4 NCP | C26: NCP 4
A27: 12 NCP | C27: NCP 12
D30: 1 | E30: 2 | F30: 3 | G30: 4 | H30: 5 | I30: 6 | J30: 7 | K30: 8 | L30: 9 | M30: 10 | N30: 11 | O30: 12 | P30: 13 | Q30: 14 | R30: 15 | S30: 16 | T30: 17 | U30: 18 | V30: 19 | W30: 20
A31: Customer Classes | C31: Total | D31: Residential | E31: GS <50 | F31: GS>50-Regular | G31: GS> 50-TOU | H31: GS >50-Intermediate | I31: Large Use >5MW | J31: Street Light | K31: Sentinel | L31: Unmetered Scattered Load | M31: Embedded Distributor | N31: Back-up/Standby Power | O31: Rate Class 1 | P31: Rate class 2 | Q31: Rate class 3 | R31: Rate class 4 | S31: Rate class 5 | T31: Rate class 6 | U31: Rate class 7 | V31: Rate class 8 | W31: Rate class 9
C34: CP Sanity Check | D34: =IF(MAX(D38,D39,D40)>D55,"Check 1 CP",IF(MAX(D43,D44,D45)>D61,"Check 4 CP",IF(MAX(D48,D49,D50)>D67,"Check 12 CP","Pass"))) -> Pass | E34: =IF(MAX(E38,E39,E40)>E55,"Check 1 CP",IF(MAX(E43,E44,E45)>E61,"Check 4 CP",IF(MAX(E48,E49,E50)>E67,"Check 12 CP","Pass"))) -> Pass | F34: =IF(MAX(F38,F39,F40)>F55,"Check 1 CP",IF(MAX(F43,F44,F45)>F61,"Check 4 CP",IF(MAX(F48,F49,F50)>F67,"Check 12 CP","Pass"))) -> Pass | G34: =IF(MAX(G38,G39,G40)>G55,"Check 1 CP",IF(MAX(G43,G44,G45)>G61,"Check 4 CP",IF(MAX(G48,G49,G50)>G67,"Check 12 CP","Pass"))) -> Pass | H34: =IF(MAX(H38,H39,H40)>H55,"Check 1 CP",IF(MAX(H43,H44,H45)>H61,"Check 4 CP",IF(MAX(H48,H49,H50)>H67,"Check 12 CP","Pass"))) -> Pass | I34: =IF(MAX(I38,I39,I40)>I55,"Check 1 CP",IF(MAX(I43,I44,I45)>I61,"Check 4 CP",IF(MAX(I48,I49,I50)>I67,"Check 12 CP","Pass"))) -> Pass | J34: =IF(MAX(J38,J39,J40)>J55,"Check 1 CP",IF(MAX(J43,J44,J45)>J61,"Check 4 CP",IF(MAX(J48,J49,J50)>J67,"Check 12 CP","Pass"))) -> Pass | K34: =IF(MAX(K38,K39,K40)>K55,"Check 1 CP",IF(MAX(K43,K44,K45)>K61,"Check 4 CP",IF(MAX(K48,K49,K50)>K67,"Check 12 CP","Pass"))) -> Pass | L34: =IF(MAX(L38,L39,L40)>L55,"Check 1 CP",IF(MAX(L43,L44,L45)>L61,"Check 4 CP",IF(MAX(L48,L49,L50)>L67,"Check 12 CP","Pass"))) -> Pass | M34: =IF(MAX(M38,M39,M40)>M55,"Check 1 CP",IF(MAX(M43,M44,M45)>M61,"Check 4 CP",IF(MAX(M48,M49,M50)>M67,"Check 12 CP","Pass"))) -> Pass | N34: =IF(MAX(N38,N39,N40)>N55,"Check 1 CP",IF(MAX(N43,N44,N45)>N61,"Check 4 CP",IF(MAX(N48,N49,N50)>N67,"Check 12 CP","Pass"))) -> Pass | O34: =IF(MAX(O38,O39,O40)>O55,"Check 1 CP",IF(MAX(O43,O44,O45)>O61,"Check 4 CP",IF(MAX(O48,O49,O50)>O67,"Check 12 CP","Pass"))) -> Pass | P34: =IF(MAX(P38,P39,P40)>P55,"Check 1 CP",IF(MAX(P43,P44,P45)>P61,"Check 4 CP",IF(MAX(P48,P49,P50)>P67,"Check 12 CP","Pass"))) -> Pass | Q34: =IF(MAX(Q38,Q39,Q40)>Q55,"Check 1 CP",IF(MAX(Q43,Q44,Q45)>Q61,"Check 4 CP",IF(MAX(Q48,Q49,Q50)>Q67,"Check 12 CP","Pass"))) -> Pass | R34: =IF(MAX(R38,R39,R40)>R55,"Check 1 CP",IF(MAX(R43,R44,R45)>R61,"Check 4 CP",IF(MAX(R48,R49,R50)>R67,"Check 12 CP","Pass"))) -> Pass | S34: =IF(MAX(S38,S39,S40)>S55,"Check 1 CP",IF(MAX(S43,S44,S45)>S61,"Check 4 CP",IF(MAX(S48,S49,S50)>S67,"Check 12 CP","Pass"))) -> Pass | T34: =IF(MAX(T38,T39,T40)>T55,"Check 1 CP",IF(MAX(T43,T44,T45)>T61,"Check 4 CP",IF(MAX(T48,T49,T50)>T67,"Check 12 CP","Pass"))) -> Pass | U34: =IF(MAX(U38,U39,U40)>U55,"Check 1 CP",IF(MAX(U43,U44,U45)>U61,"Check 4 CP",IF(MAX(U48,U49,U50)>U67,"Check 12 CP","Pass"))) -> Pass | V34: =IF(MAX(V38,V39,V40)>V55,"Check 1 CP",IF(MAX(V43,V44,V45)>V61,"Check 4 CP",IF(MAX(V48,V49,V50)>V67,"Check 12 CP","Pass"))) -> Pass | W34: =IF(MAX(W38,W39,W40)>W55,"Check 1 CP",IF(MAX(W43,W44,W45)>W61,"Check 4 CP",IF(MAX(W48,W49,W50)>W67,"Check 12 CP","Pass"))) -> Pass
A35: CO-INCIDENT PEAK
A37: 1 CP
A38: Transformation CP | B38: TCP1 | C38: =SUM(D38:W38) -> 54715.00578 | D38: 26289.13987 | E38: 8026.185012 | F38: 20355.25059 | J38: 0 | L38: 44.43030621
A39: Bulk Delivery CP | B39: BCP1 | C39: =SUM(D39:W39) -> 54715.00578 | D39: =D38 -> 26289.13987 | E39: =E38 -> 8026.185012 | F39: =F38 -> 20355.25059 | G39: =G38 -> 0 | H39: =H38 -> 0 | I39: =I38 -> 0 | J39: =J38 -> 0 | K39: =K38 -> 0 | L39: =L38 -> 44.43030621
A40: Total Sytem CP | B40: DCP1 | C40: =SUM(D40:W40) -> 54715.00578 | D40: =D39 -> 26289.13987 | E40: =E39 -> 8026.185012 | F40: =F39 -> 20355.25059 | G40: =G39 -> 0 | H40: =H39 -> 0 | I40: =I39 -> 0 | J40: =J39 -> 0 | K40: =K39 -> 0 | L40: =L39 -> 44.43030621
A42: 4 CP
A43: Transformation CP | B43: TCP4 | C43: =SUM(D43:W43) -> 216327.4629 | D43: 102732.7317 | E43: 33375.24314 | F43: 79765.80943 | J43: 274.6227491 | L43: 179.0558839
A44: Bulk Delivery CP | B44: BCP4 | C44: =SUM(D44:W44) -> 216327.4629 | D44: =D43 -> 102732.7317 | E44: =E43 -> 33375.24314 | F44: =F43 -> 79765.80943 | G44: =G43 -> 0 | H44: =H43 -> 0 | I44: =I43 -> 0 | J44: =J43 -> 274.6227491 | K44: =K43 -> 0 | L44: =L43 -> 179.0558839
A45: Total Sytem CP | B45: DCP4 | C45: =SUM(D45:W45) -> 216327.4629 | D45: =D44 -> 102732.7317 | E45: =E44 -> 33375.24314 | F45: =F44 -> 79765.80943 | G45: =G44 -> 0 | H45: =H44 -> 0 | I45: =I44 -> 0 | J45: =J44 -> 274.6227491 | K45: =K44 -> 0 | L45: =L44 -> 179.0558839
A47: 12 CP
A48: Transformation CP | B48: TCP12 | C48: =SUM(D48:W48) -> 600516.022 | D48: 284245.0854 | E48: 92520.59972 | F48: 221561.0634 | J48: 1647.736495 | L48: 541.5369822
A49: Bulk Delivery CP | B49: BCP12 | C49: =SUM(D49:W49) -> 600516.022 | D49: =D48 -> 284245.0854 | E49: =E48 -> 92520.59972 | F49: =F48 -> 221561.0634 | G49: =G48 -> 0 | H49: =H48 -> 0 | I49: =I48 -> 0 | J49: =J48 -> 1647.736495 | K49: =K48 -> 0 | L49: =L48 -> 541.5369822
A50: Total Sytem CP | B50: DCP12 | C50: =SUM(D50:W50) -> 600516.022 | D50: =D49 -> 284245.0854 | E50: =E49 -> 92520.59972 | F50: =F49 -> 221561.0634 | G50: =G49 -> 0 | H50: =H49 -> 0 | I50: =I49 -> 0 | J50: =J49 -> 1647.736495 | K50: =K49 -> 0 | L50: =L49 -> 541.5369822
A52: NON CO_INCIDENT PEAK
C53: NCP Sanity Check | D53: =IF(OR(D55*4<D61,D56*4<D62,D57*4<D63,D58*4<D64),IF(OR(D55*12<D67,D56*12<D68,D57*12<D69,D58*12<D70),"Check 4 NCP and 12 NCP","Check 4 NCP"),IF(OR(D55*12<D67,D56*12<D68,D57*12<D69,D58*12<D70),"Check 12 NCP","Pass")) -> Pass | E53: =IF(OR(E55*4<E61,E56*4<E62,E57*4<E63,E58*4<E64),IF(OR(E55*12<E67,E56*12<E68,E57*12<E69,E58*12<E70),"Check 4 NCP and 12 NCP","Check 4 NCP"),IF(OR(E55*12<E67,E56*12<E68,E57*12<E69,E58*12<E70),"Check 12 NCP","Pass")) -> Pass | F53: =IF(OR(F55*4<F61,F56*4<F62,F57*4<F63,F58*4<F64),IF(OR(F55*12<F67,F56*12<F68,F57*12<F69,F58*12<F70),"Check 4 NCP and 12 NCP","Check 4 NCP"),IF(OR(F55*12<F67,F56*12<F68,F57*12<F69,F58*12<F70),"Check 12 NCP","Pass")) -> Pass | G53: =IF(OR(G55*4<G61,G56*4<G62,G57*4<G63,G58*4<G64),IF(OR(G55*12<G67,G56*12<G68,G57*12<G69,G58*12<G70),"Check 4 NCP and 12 NCP","Check 4 NCP"),IF(OR(G55*12<G67,G56*12<G68,G57*12<G69,G58*12<G70),"Check 12 NCP","Pass")) -> Pass | H53: =IF(OR(H55*4<H61,H56*4<H62,H57*4<H63,H58*4<H64),IF(OR(H55*12<H67,H56*12<H68,H57*12<H69,H58*12<H70),"Check 4 NCP and 12 NCP","Check 4 NCP"),IF(OR(H55*12<H67,H56*12<H68,H57*12<H69,H58*12<H70),"Check 12 NCP","Pass")) -> Pass | I53: =IF(OR(I55*4<I61,I56*4<I62,I57*4<I63,I58*4<I64),IF(OR(I55*12<I67,I56*12<I68,I57*12<I69,I58*12<I70),"Check 4 NCP and 12 NCP","Check 4 NCP"),IF(OR(I55*12<I67,I56*12<I68,I57*12<I69,I58*12<I70),"Check 12 NCP","Pass")) -> Pass | J53: =IF(OR(J55*4<J61,J56*4<J62,J57*4<J63,J58*4<J64),IF(OR(J55*12<J67,J56*12<J68,J57*12<J69,J58*12<J70),"Check 4 NCP and 12 NCP","Check 4 NCP"),IF(OR(J55*12<J67,J56*12<J68,J57*12<J69,J58*12<J70),"Check 12 NCP","Pass")) -> Pass | K53: =IF(OR(K55*4<K61,K56*4<K62,K57*4<K63,K58*4<K64),IF(OR(K55*12<K67,K56*12<K68,K57*12<K69,K58*12<K70),"Check 4 NCP and 12 NCP","Check 4 NCP"),IF(OR(K55*12<K67,K56*12<K68,K57*12<K69,K58*12<K70),"Check 12 NCP","Pass")) -> Pass | L53: =IF(OR(L55*4<L61,L56*4<L62,L57*4<L63,L58*4<L64),IF(OR(L55*12<L67,L56*12<L68,L57*12<L69,L58*12<L70),"Check 4 NCP and 12 NCP","Check 4 NCP"),IF(OR(L55*12<L67,L56*12<L68,L57*12<L69,L58*12<L70),"Check 12 NCP","Pass")) -> Pass | M53: =IF(OR(M55*4<M61,M56*4<M62,M57*4<M63,M58*4<M64),IF(OR(M55*12<M67,M56*12<M68,M57*12<M69,M58*12<M70),"Check 4 NCP and 12 NCP","Check 4 NCP"),IF(OR(M55*12<M67,M56*12<M68,M57*12<M69,M58*12<M70),"Check 12 NCP","Pass")) -> Pass | N53: =IF(OR(N55*4<N61,N56*4<N62,N57*4<N63,N58*4<N64),IF(OR(N55*12<N67,N56*12<N68,N57*12<N69,N58*12<N70),"Check 4 NCP and 12 NCP","Check 4 NCP"),IF(OR(N55*12<N67,N56*12<N68,N57*12<N69,N58*12<N70),"Check 12 NCP","Pass")) -> Pass | O53: =IF(OR(O55*4<O61,O56*4<O62,O57*4<O63,O58*4<O64),IF(OR(O55*12<O67,O56*12<O68,O57*12<O69,O58*12<O70),"Check 4 NCP and 12 NCP","Check 4 NCP"),IF(OR(O55*12<O67,O56*12<O68,O57*12<O69,O58*12<O70),"Check 12 NCP","Pass")) -> Pass | P53: =IF(OR(P55*4<P61,P56*4<P62,P57*4<P63,P58*4<P64),IF(OR(P55*12<P67,P56*12<P68,P57*12<P69,P58*12<P70),"Check 4 NCP and 12 NCP","Check 4 NCP"),IF(OR(P55*12<P67,P56*12<P68,P57*12<P69,P58*12<P70),"Check 12 NCP","Pass")) -> Pass | Q53: =IF(OR(Q55*4<Q61,Q56*4<Q62,Q57*4<Q63,Q58*4<Q64),IF(OR(Q55*12<Q67,Q56*12<Q68,Q57*12<Q69,Q58*12<Q70),"Check 4 NCP and 12 NCP","Check 4 NCP"),IF(OR(Q55*12<Q67,Q56*12<Q68,Q57*12<Q69,Q58*12<Q70),"Check 12 NCP","Pass")) -> Pass | R53: =IF(OR(R55*4<R61,R56*4<R62,R57*4<R63,R58*4<R64),IF(OR(R55*12<R67,R56*12<R68,R57*12<R69,R58*12<R70),"Check 4 NCP and 12 NCP","Check 4 NCP"),IF(OR(R55*12<R67,R56*12<R68,R57*12<R69,R58*12<R70),"Check 12 NCP","Pass")) -> Pass | S53: =IF(OR(S55*4<S61,S56*4<S62,S57*4<S63,S58*4<S64),IF(OR(S55*12<S67,S56*12<S68,S57*12<S69,S58*12<S70),"Check 4 NCP and 12 NCP","Check 4 NCP"),IF(OR(S55*12<S67,S56*12<S68,S57*12<S69,S58*12<S70),"Check 12 NCP","Pass")) -> Pass | T53: =IF(OR(T55*4<T61,T56*4<T62,T57*4<T63,T58*4<T64),IF(OR(T55*12<T67,T56*12<T68,T57*12<T69,T58*12<T70),"Check 4 NCP and 12 NCP","Check 4 NCP"),IF(OR(T55*12<T67,T56*12<T68,T57*12<T69,T58*12<T70),"Check 12 NCP","Pass")) -> Pass | U53: =IF(OR(U55*4<U61,U56*4<U62,U57*4<U63,U58*4<U64),IF(OR(U55*12<U67,U56*12<U68,U57*12<U69,U58*12<U70),"Check 4 NCP and 12 NCP","Check 4 NCP"),IF(OR(U55*12<U67,U56*12<U68,U57*12<U69,U58*12<U70),"Check 12 NCP","Pass")) -> Pass | V53: =IF(OR(V55*4<V61,V56*4<V62,V57*4<V63,V58*4<V64),IF(OR(V55*12<V67,V56*12<V68,V57*12<V69,V58*12<V70),"Check 4 NCP and 12 NCP","Check 4 NCP"),IF(OR(V55*12<V67,V56*12<V68,V57*12<V69,V58*12<V70),"Check 12 NCP","Pass")) -> Pass | W53: =IF(OR(W55*4<W61,W56*4<W62,W57*4<W63,W58*4<W64),IF(OR(W55*12<W67,W56*12<W68,W57*12<W69,W58*12<W70),"Check 4 NCP and 12 NCP","Check 4 NCP"),IF(OR(W55*12<W67,W56*12<W68,W57*12<W69,W58*12<W70),"Check 12 NCP","Pass")) -> Pass
A54: 1 NCP
A55: Classification NCP from Load Data Provider | B55: DNCP1 | C55: =SUM(D55:W55) -> 58458.75554 | D55: 27502.91572 | E55: 8992.697326 | F55: 21641.18184 | J55: 274.6227491 | L55: 47.33790363
A56: Primary NCP | B56: PNCP1 | C56: =SUM(D56:W56) -> 58458.75554 | D56: =D55 -> 27502.91572 | E56: =E55 -> 8992.697326 | F56: =F55 -> 21641.18184 | G56: =G55 -> 0 | H56: =H55 -> 0 | I56: =I55 -> 0 | J56: =J55 -> 274.6227491 | K56: =K55 -> 0 | L56: =L55 -> 47.33790363
A57: Line Transformer NCP | B57: LTNCP1 | C57: =SUM(D57:W57) -> 45617.53424 | D57: =D56 -> 27502.91572 | E57: =E56 -> 8992.697326 | F57: 8799.960543 | G57: =G56 -> 0 | H57: =H56 -> 0 | I57: =I56 -> 0 | J57: =J56 -> 274.6227491 | K57: =K56 -> 0 | L57: =L56 -> 47.33790363
A58: Secondary NCP | B58: SNCP1 | C58: =SUM(D58:W58) -> 45617.53424 | D58: =D57 -> 27502.91572 | E58: =E57 -> 8992.697326 | F58: =F57 -> 8799.960543 | G58: =G57 -> 0 | H58: =H57 -> 0 | I58: =I57 -> 0 | J58: =J57 -> 274.6227491 | K58: =K57 -> 0 | L58: =L57 -> 47.33790363
A60: 4 NCP
A61: Classification NCP from Load Data Provider | B61: DNCP4 | C61: =SUM(D61:W61) -> 227345.5439 | D61: 105782.1254 | E61: 34946.26787 | F61: 85332.35844 | J61: 1098.490997 | L61: 186.3011841
A62: Primary NCP | B62: PNCP4 | C62: =SUM(D62:W62) -> 227345.5439 | D62: =D61 -> 105782.1254 | E62: =E61 -> 34946.26787 | F62: =F61 -> 85332.35844 | G62: =G61 -> 0 | H62: =H61 -> 0 | I62: =I61 -> 0 | J62: =J61 -> 1098.490997 | K62: =K61 -> 0 | L62: =L61 -> 186.3011841
A63: Line Transformer NCP | B63: LTNCP4 | C63: =SUM(D63:W63) -> 176711.9091 | D63: =D62 -> 105782.1254 | E63: =E62 -> 34946.26787 | F63: 34698.72361 | G63: =G62 -> 0 | H63: =H62 -> 0 | I63: =I62 -> 0 | J63: =J62 -> 1098.490997 | K63: =K62 -> 0 | L63: =L62 -> 186.3011841
A64: Secondary NCP | B64: SNCP4 | C64: =SUM(D64:W64) -> 176711.9091 | D64: =D63 -> 105782.1254 | E64: =E63 -> 34946.26787 | F64: =F63 -> 34698.72361 | G64: =G63 -> 0 | H64: =H63 -> 0 | I64: =I63 -> 0 | J64: =J63 -> 1098.490997 | K64: =K63 -> 0 | L64: =L63 -> 186.3011841
A66: 12 NCP
A67: Classification NCP from Load Data Provider | B67: DNCP12 | C67: =SUM(D67:W67) -> 629409.6623 | D67: 289401.1007 | E67: 94807.47106 | F67: 241355.6468 | J67: 3295.47289 | L67: 549.9708174
A68: Primary NCP | B68: PNCP12 | C68: =SUM(D68:W68) -> 629409.6623 | D68: =D67 -> 289401.1007 | E68: =E67 -> 94807.47106 | F68: =F67 -> 241355.6468 | G68: =G67 -> 0 | H68: =H67 -> 0 | I68: =I67 -> 0 | J68: =J67 -> 3295.47289 | K68: =K67 -> 0 | L68: =L67 -> 549.9708174
A69: Line Transformer NCP | B69: LTNCP12 | C69: =SUM(D69:W69) -> 486196.5376 | D69: =D68 -> 289401.1007 | E69: =E68 -> 94807.47106 | F69: 98142.52219 | G69: =G68 -> 0 | H69: =H68 -> 0 | I69: =I68 -> 0 | J69: =J68 -> 3295.47289 | K69: =K68 -> 0 | L69: =L68 -> 549.9708174
A70: Secondary NCP | B70: SNCP12 | C70: =SUM(D70:W70) -> 486196.5376 | D70: =D69 -> 289401.1007 | E70: =E69 -> 94807.47106 | F70: =F69 -> 98142.52219 | G70: =G69 -> 0 | H70: =H69 -> 0 | I70: =I69 -> 0 | J70: =J69 -> 3295.47289 | K70: =K69 -> 0 | L70: =L69 -> 549.9708174

Sheet ii. 2021 Base Year
A4: EB-2021-XXXX
A5: Sheet I8 Demand Data Worksheet -
A14: CP TEST RESULTS | C14: -
A15: NCP TEST RESULTS | C15: -
A17: Co-incident Peak | C17: Indicator
A18: 1 CP | C18: CP 1
A19: 4 CP | C19: CP 4
A20: 12 CP | C20: CP 12
A22: 4 NCP | C22: NCP 4
A23: 12 NCP | C23: NCP 12
A24: Non-co-incident Peak | C24: Indicator
A25: 1 NCP | C25: NCP 1
A26: 4 NCP | C26: NCP 4
A27: 12 NCP | C27: NCP 12
D30: 1 | E30: 2 | F30: 3 | G30: 4 | H30: 5 | I30: 6 | J30: 7 | K30: 8 | L30: 9 | M30: 10 | N30: 11 | O30: 12 | P30: 13 | Q30: 14 | R30: 15 | S30: 16 | T30: 17 | U30: 18 | V30: 19 | W30: 20
A31: Customer Classes | C31: Total | D31: Residential | E31: GS <50 | F31: GS>50-Regular | G31: GS> 50-TOU | H31: GS >50-Intermediate | I31: Large Use >5MW | J31: Street Light | K31: Sentinel | L31: Unmetered Scattered Load | M31: Embedded Distributor | N31: Back-up/Standby Power | O31: Rate Class 1 | P31: Rate class 2 | Q31: Rate class 3 | R31: Rate class 4 | S31: Rate class 5 | T31: Rate class 6 | U31: Rate class 7 | V31: Rate class 8 | W31: Rate class 9
C34: CP Sanity Check | D34: =IF(MAX(D38,D39,D40)>D55,"Check 1 CP",IF(MAX(D43,D44,D45)>D61,"Check 4 CP",IF(MAX(D48,D49,D50)>D67,"Check 12 CP","Pass"))) -> Pass | E34: =IF(MAX(E38,E39,E40)>E55,"Check 1 CP",IF(MAX(E43,E44,E45)>E61,"Check 4 CP",IF(MAX(E48,E49,E50)>E67,"Check 12 CP","Pass"))) -> Pass | F34: =IF(MAX(F38,F39,F40)>F55,"Check 1 CP",IF(MAX(F43,F44,F45)>F61,"Check 4 CP",IF(MAX(F48,F49,F50)>F67,"Check 12 CP","Pass"))) -> Pass | G34: =IF(MAX(G38,G39,G40)>G55,"Check 1 CP",IF(MAX(G43,G44,G45)>G61,"Check 4 CP",IF(MAX(G48,G49,G50)>G67,"Check 12 CP","Pass"))) -> Pass | H34: =IF(MAX(H38,H39,H40)>H55,"Check 1 CP",IF(MAX(H43,H44,H45)>H61,"Check 4 CP",IF(MAX(H48,H49,H50)>H67,"Check 12 CP","Pass"))) -> Pass | I34: =IF(MAX(I38,I39,I40)>I55,"Check 1 CP",IF(MAX(I43,I44,I45)>I61,"Check 4 CP",IF(MAX(I48,I49,I50)>I67,"Check 12 CP","Pass"))) -> Pass | J34: =IF(MAX(J38,J39,J40)>J55,"Check 1 CP",IF(MAX(J43,J44,J45)>J61,"Check 4 CP",IF(MAX(J48,J49,J50)>J67,"Check 12 CP","Pass"))) -> Pass | K34: =IF(MAX(K38,K39,K40)>K55,"Check 1 CP",IF(MAX(K43,K44,K45)>K61,"Check 4 CP",IF(MAX(K48,K49,K50)>K67,"Check 12 CP","Pass"))) -> Pass | L34: =IF(MAX(L38,L39,L40)>L55,"Check 1 CP",IF(MAX(L43,L44,L45)>L61,"Check 4 CP",IF(MAX(L48,L49,L50)>L67,"Check 12 CP","Pass"))) -> Pass | M34: =IF(MAX(M38,M39,M40)>M55,"Check 1 CP",IF(MAX(M43,M44,M45)>M61,"Check 4 CP",IF(MAX(M48,M49,M50)>M67,"Check 12 CP","Pass"))) -> Pass | N34: =IF(MAX(N38,N39,N40)>N55,"Check 1 CP",IF(MAX(N43,N44,N45)>N61,"Check 4 CP",IF(MAX(N48,N49,N50)>N67,"Check 12 CP","Pass"))) -> Pass | O34: =IF(MAX(O38,O39,O40)>O55,"Check 1 CP",IF(MAX(O43,O44,O45)>O61,"Check 4 CP",IF(MAX(O48,O49,O50)>O67,"Check 12 CP","Pass"))) -> Pass | P34: =IF(MAX(P38,P39,P40)>P55,"Check 1 CP",IF(MAX(P43,P44,P45)>P61,"Check 4 CP",IF(MAX(P48,P49,P50)>P67,"Check 12 CP","Pass"))) -> Pass | Q34: =IF(MAX(Q38,Q39,Q40)>Q55,"Check 1 CP",IF(MAX(Q43,Q44,Q45)>Q61,"Check 4 CP",IF(MAX(Q48,Q49,Q50)>Q67,"Check 12 CP","Pass"))) -> Pass | R34: =IF(MAX(R38,R39,R40)>R55,"Check 1 CP",IF(MAX(R43,R44,R45)>R61,"Check 4 CP",IF(MAX(R48,R49,R50)>R67,"Check 12 CP","Pass"))) -> Pass | S34: =IF(MAX(S38,S39,S40)>S55,"Check 1 CP",IF(MAX(S43,S44,S45)>S61,"Check 4 CP",IF(MAX(S48,S49,S50)>S67,"Check 12 CP","Pass"))) -> Pass | T34: =IF(MAX(T38,T39,T40)>T55,"Check 1 CP",IF(MAX(T43,T44,T45)>T61,"Check 4 CP",IF(MAX(T48,T49,T50)>T67,"Check 12 CP","Pass"))) -> Pass | U34: =IF(MAX(U38,U39,U40)>U55,"Check 1 CP",IF(MAX(U43,U44,U45)>U61,"Check 4 CP",IF(MAX(U48,U49,U50)>U67,"Check 12 CP","Pass"))) -> Pass | V34: =IF(MAX(V38,V39,V40)>V55,"Check 1 CP",IF(MAX(V43,V44,V45)>V61,"Check 4 CP",IF(MAX(V48,V49,V50)>V67,"Check 12 CP","Pass"))) -> Pass | W34: =IF(MAX(W38,W39,W40)>W55,"Check 1 CP",IF(MAX(W43,W44,W45)>W61,"Check 4 CP",IF(MAX(W48,W49,W50)>W67,"Check 12 CP","Pass"))) -> Pass
A35: CO-INCIDENT PEAK
A37: 1 CP
A38: Transformation CP | B38: TCP1 | C38: =SUM(D38:W38) -> 53180.90691 | D38: 26907.26104 | E38: 7777.646524 | F38: 18176.32353 | J38: 275.352909 | L38: 44.32290767
A39: Bulk Delivery CP | B39: BCP1 | C39: =SUM(D39:W39) -> 53180.90691 | D39: =D38 -> 26907.26104 | E39: =E38 -> 7777.646524 | F39: =F38 -> 18176.32353 | G39: =G38 -> 0 | H39: =H38 -> 0 | I39: =I38 -> 0 | J39: =J38 -> 275.352909 | K39: =K38 -> 0 | L39: =L38 -> 44.32290767
A40: Total Sytem CP | B40: DCP1 | C40: =SUM(D40:W40) -> 53180.90691 | D40: =D39 -> 26907.26104 | E40: =E39 -> 7777.646524 | F40: =F39 -> 18176.32353 | G40: =G39 -> 0 | H40: =H39 -> 0 | I40: =I39 -> 0 | J40: =J39 -> 275.352909 | K40: =K39 -> 0 | L40: =L39 -> 44.32290767
A42: 4 CP
A43: Transformation CP | B43: TCP4 | C43: =SUM(D43:W43) -> 210390.5417 | D43: 105297.9214 | E43: 32380.58207 | F43: 71704.01334 | J43: 826.0587271 | L43: 181.9662287
A44: Bulk Delivery CP | B44: BCP4 | C44: =SUM(D44:W44) -> 210390.5417 | D44: =D43 -> 105297.9214 | E44: =E43 -> 32380.58207 | F44: =F43 -> 71704.01334 | G44: =G43 -> 0 | H44: =H43 -> 0 | I44: =I43 -> 0 | J44: =J43 -> 826.0587271 | K44: =K43 -> 0 | L44: =L43 -> 181.9662287
A45: Total Sytem CP | B45: DCP4 | C45: =SUM(D45:W45) -> 210390.5417 | D45: =D44 -> 105297.9214 | E45: =E44 -> 32380.58207 | F45: =F44 -> 71704.01334 | G45: =G44 -> 0 | H45: =H44 -> 0 | I45: =I44 -> 0 | J45: =J44 -> 826.0587271 | K45: =K44 -> 0 | L45: =L44 -> 181.9662287
A47: 12 CP
A48: Transformation CP | B48: TCP12 | C48: =SUM(D48:W48) -> 593279.7477 | D48: 283250.0215 | E48: 92733.90945 | F48: 215100.4918 | J48: 1652.117454 | L48: 543.2074455
A49: Bulk Delivery CP | B49: BCP12 | C49: =SUM(D49:W49) -> 593279.7477 | D49: =D48 -> 283250.0215 | E49: =E48 -> 92733.90945 | F49: =F48 -> 215100.4918 | G49: =G48 -> 0 | H49: =H48 -> 0 | I49: =I48 -> 0 | J49: =J48 -> 1652.117454 | K49: =K48 -> 0 | L49: =L48 -> 543.2074455
A50: Total Sytem CP | B50: DCP12 | C50: =SUM(D50:W50) -> 593279.7477 | D50: =D49 -> 283250.0215 | E50: =E49 -> 92733.90945 | F50: =F49 -> 215100.4918 | G50: =G49 -> 0 | H50: =H49 -> 0 | I50: =I49 -> 0 | J50: =J49 -> 1652.117454 | K50: =K49 -> 0 | L50: =L49 -> 543.2074455
A52: NON CO_INCIDENT PEAK
C53: NCP Sanity Check | D53: =IF(OR(D55*4<D61,D56*4<D62,D57*4<D63,D58*4<D64),IF(OR(D55*12<D67,D56*12<D68,D57*12<D69,D58*12<D70),"Check 4 NCP and 12 NCP","Check 4 NCP"),IF(OR(D55*12<D67,D56*12<D68,D57*12<D69,D58*12<D70),"Check 12 NCP","Pass")) -> Pass | E53: =IF(OR(E55*4<E61,E56*4<E62,E57*4<E63,E58*4<E64),IF(OR(E55*12<E67,E56*12<E68,E57*12<E69,E58*12<E70),"Check 4 NCP and 12 NCP","Check 4 NCP"),IF(OR(E55*12<E67,E56*12<E68,E57*12<E69,E58*12<E70),"Check 12 NCP","Pass")) -> Pass | F53: =IF(OR(F55*4<F61,F56*4<F62,F57*4<F63,F58*4<F64),IF(OR(F55*12<F67,F56*12<F68,F57*12<F69,F58*12<F70),"Check 4 NCP and 12 NCP","Check 4 NCP"),IF(OR(F55*12<F67,F56*12<F68,F57*12<F69,F58*12<F70),"Check 12 NCP","Pass")) -> Pass | G53: =IF(OR(G55*4<G61,G56*4<G62,G57*4<G63,G58*4<G64),IF(OR(G55*12<G67,G56*12<G68,G57*12<G69,G58*12<G70),"Check 4 NCP and 12 NCP","Check 4 NCP"),IF(OR(G55*12<G67,G56*12<G68,G57*12<G69,G58*12<G70),"Check 12 NCP","Pass")) -> Pass | H53: =IF(OR(H55*4<H61,H56*4<H62,H57*4<H63,H58*4<H64),IF(OR(H55*12<H67,H56*12<H68,H57*12<H69,H58*12<H70),"Check 4 NCP and 12 NCP","Check 4 NCP"),IF(OR(H55*12<H67,H56*12<H68,H57*12<H69,H58*12<H70),"Check 12 NCP","Pass")) -> Pass | I53: =IF(OR(I55*4<I61,I56*4<I62,I57*4<I63,I58*4<I64),IF(OR(I55*12<I67,I56*12<I68,I57*12<I69,I58*12<I70),"Check 4 NCP and 12 NCP","Check 4 NCP"),IF(OR(I55*12<I67,I56*12<I68,I57*12<I69,I58*12<I70),"Check 12 NCP","Pass")) -> Pass | J53: =IF(OR(J55*4<J61,J56*4<J62,J57*4<J63,J58*4<J64),IF(OR(J55*12<J67,J56*12<J68,J57*12<J69,J58*12<J70),"Check 4 NCP and 12 NCP","Check 4 NCP"),IF(OR(J55*12<J67,J56*12<J68,J57*12<J69,J58*12<J70),"Check 12 NCP","Pass")) -> Pass | K53: =IF(OR(K55*4<K61,K56*4<K62,K57*4<K63,K58*4<K64),IF(OR(K55*12<K67,K56*12<K68,K57*12<K69,K58*12<K70),"Check 4 NCP and 12 NCP","Check 4 NCP"),IF(OR(K55*12<K67,K56*12<K68,K57*12<K69,K58*12<K70),"Check 12 NCP","Pass")) -> Pass | L53: =IF(OR(L55*4<L61,L56*4<L62,L57*4<L63,L58*4<L64),IF(OR(L55*12<L67,L56*12<L68,L57*12<L69,L58*12<L70),"Check 4 NCP and 12 NCP","Check 4 NCP"),IF(OR(L55*12<L67,L56*12<L68,L57*12<L69,L58*12<L70),"Check 12 NCP","Pass")) -> Pass | M53: =IF(OR(M55*4<M61,M56*4<M62,M57*4<M63,M58*4<M64),IF(OR(M55*12<M67,M56*12<M68,M57*12<M69,M58*12<M70),"Check 4 NCP and 12 NCP","Check 4 NCP"),IF(OR(M55*12<M67,M56*12<M68,M57*12<M69,M58*12<M70),"Check 12 NCP","Pass")) -> Pass | N53: =IF(OR(N55*4<N61,N56*4<N62,N57*4<N63,N58*4<N64),IF(OR(N55*12<N67,N56*12<N68,N57*12<N69,N58*12<N70),"Check 4 NCP and 12 NCP","Check 4 NCP"),IF(OR(N55*12<N67,N56*12<N68,N57*12<N69,N58*12<N70),"Check 12 NCP","Pass")) -> Pass | O53: =IF(OR(O55*4<O61,O56*4<O62,O57*4<O63,O58*4<O64),IF(OR(O55*12<O67,O56*12<O68,O57*12<O69,O58*12<O70),"Check 4 NCP and 12 NCP","Check 4 NCP"),IF(OR(O55*12<O67,O56*12<O68,O57*12<O69,O58*12<O70),"Check 12 NCP","Pass")) -> Pass | P53: =IF(OR(P55*4<P61,P56*4<P62,P57*4<P63,P58*4<P64),IF(OR(P55*12<P67,P56*12<P68,P57*12<P69,P58*12<P70),"Check 4 NCP and 12 NCP","Check 4 NCP"),IF(OR(P55*12<P67,P56*12<P68,P57*12<P69,P58*12<P70),"Check 12 NCP","Pass")) -> Pass | Q53: =IF(OR(Q55*4<Q61,Q56*4<Q62,Q57*4<Q63,Q58*4<Q64),IF(OR(Q55*12<Q67,Q56*12<Q68,Q57*12<Q69,Q58*12<Q70),"Check 4 NCP and 12 NCP","Check 4 NCP"),IF(OR(Q55*12<Q67,Q56*12<Q68,Q57*12<Q69,Q58*12<Q70),"Check 12 NCP","Pass")) -> Pass | R53: =IF(OR(R55*4<R61,R56*4<R62,R57*4<R63,R58*4<R64),IF(OR(R55*12<R67,R56*12<R68,R57*12<R69,R58*12<R70),"Check 4 NCP and 12 NCP","Check 4 NCP"),IF(OR(R55*12<R67,R56*12<R68,R57*12<R69,R58*12<R70),"Check 12 NCP","Pass")) -> Pass | S53: =IF(OR(S55*4<S61,S56*4<S62,S57*4<S63,S58*4<S64),IF(OR(S55*12<S67,S56*12<S68,S57*12<S69,S58*12<S70),"Check 4 NCP and 12 NCP","Check 4 NCP"),IF(OR(S55*12<S67,S56*12<S68,S57*12<S69,S58*12<S70),"Check 12 NCP","Pass")) -> Pass | T53: =IF(OR(T55*4<T61,T56*4<T62,T57*4<T63,T58*4<T64),IF(OR(T55*12<T67,T56*12<T68,T57*12<T69,T58*12<T70),"Check 4 NCP and 12 NCP","Check 4 NCP"),IF(OR(T55*12<T67,T56*12<T68,T57*12<T69,T58*12<T70),"Check 12 NCP","Pass")) -> Pass | U53: =IF(OR(U55*4<U61,U56*4<U62,U57*4<U63,U58*4<U64),IF(OR(U55*12<U67,U56*12<U68,U57*12<U69,U58*12<U70),"Check 4 NCP and 12 NCP","Check 4 NCP"),IF(OR(U55*12<U67,U56*12<U68,U57*12<U69,U58*12<U70),"Check 12 NCP","Pass")) -> Pass | V53: =IF(OR(V55*4<V61,V56*4<V62,V57*4<V63,V58*4<V64),IF(OR(V55*12<V67,V56*12<V68,V57*12<V69,V58*12<V70),"Check 4 NCP and 12 NCP","Check 4 NCP"),IF(OR(V55*12<V67,V56*12<V68,V57*12<V69,V58*12<V70),"Check 12 NCP","Pass")) -> Pass | W53: =IF(OR(W55*4<W61,W56*4<W62,W57*4<W63,W58*4<W64),IF(OR(W55*12<W67,W56*12<W68,W57*12<W69,W58*12<W70),"Check 4 NCP and 12 NCP","Check 4 NCP"),IF(OR(W55*12<W67,W56*12<W68,W57*12<W69,W58*12<W70),"Check 12 NCP","Pass")) -> Pass
A54: 1 NCP
A55: Classification NCP from Load Data Provider | B55: DNCP1 | C55: =SUM(D55:W55) -> 58543.78553 | D55: 27566.30246 | E55: 9236.117513 | F55: 21417.11046 | J55: 275.352909 | L55: 48.90218767
A56: Primary NCP | B56: PNCP1 | C56: =SUM(D56:W56) -> 58543.78553 | D56: =D55 -> 27566.30246 | E56: =E55 -> 9236.117513 | F56: =F55 -> 21417.11046 | G56: =G55 -> 0 | H56: =H55 -> 0 | I56: =I55 -> 0 | J56: =J55 -> 275.352909 | K56: =K55 -> 0 | L56: =L55 -> 48.90218767
A57: Line Transformer NCP | B57: LTNCP1 | C57: =SUM(D57:W57) -> 45835.52139 | D57: =D56 -> 27566.30246 | E57: =E56 -> 9236.117513 | F57: 8708.846329 | G57: =G56 -> 0 | H57: =H56 -> 0 | I57: =I56 -> 0 | J57: =J56 -> 275.352909 | K57: =K56 -> 0 | L57: =L56 -> 48.90218767
A58: Secondary NCP | B58: SNCP1 | C58: =SUM(D58:W58) -> 45835.52139 | D58: =D57 -> 27566.30246 | E58: =E57 -> 9236.117513 | F58: =F57 -> 8708.846329 | G58: =G57 -> 0 | H58: =H57 -> 0 | I58: =I57 -> 0 | J58: =J57 -> 275.352909 | K58: =K57 -> 0 | L58: =L57 -> 48.90218767
A60: 4 NCP
A61: Classification NCP from Load Data Provider | B61: DNCP4 | C61: =SUM(D61:W61) -> 226473.7122 | D61: 107409.6156 | E61: 34653.61176 | F61: 83119.7667 | J61: 1101.411636 | L61: 189.3065558
A62: Primary NCP | B62: PNCP4 | C62: =SUM(D62:W62) -> 226473.7122 | D62: =D61 -> 107409.6156 | E62: =E61 -> 34653.61176 | F62: =F61 -> 83119.7667 | G62: =G61 -> 0 | H62: =H61 -> 0 | I62: =I61 -> 0 | J62: =J61 -> 1101.411636 | K62: =K61 -> 0 | L62: =L61 -> 189.3065558
A63: Line Transformer NCP | B63: LTNCP4 | C63: =SUM(D63:W63) -> 177152.9622 | D63: =D62 -> 107409.6156 | E63: =E62 -> 34653.61176 | F63: 33799.01674 | G63: =G62 -> 0 | H63: =H62 -> 0 | I63: =I62 -> 0 | J63: =J62 -> 1101.411636 | K63: =K62 -> 0 | L63: =L62 -> 189.3065558
A64: Secondary NCP | B64: SNCP4 | C64: =SUM(D64:W64) -> 177152.9622 | D64: =D63 -> 107409.6156 | E64: =E63 -> 34653.61176 | F64: =F63 -> 33799.01674 | G64: =G63 -> 0 | H64: =H63 -> 0 | I64: =I63 -> 0 | J64: =J63 -> 1101.411636 | K64: =K63 -> 0 | L64: =L63 -> 189.3065558
A66: 12 NCP
A67: Classification NCP from Load Data Provider | B67: DNCP12 | C67: =SUM(D67:W67) -> 622322.7674 | D67: 286431.1054 | E67: 93688.9536 | F67: 238345.9194 | J67: 3304.234809 | L67: 552.5542307
A68: Primary NCP | B68: PNCP12 | C68: =SUM(D68:W68) -> 622322.7674 | D68: =D67 -> 286431.1054 | E68: =E67 -> 93688.9536 | F68: =F67 -> 238345.9194 | G68: =G67 -> 0 | H68: =H67 -> 0 | I68: =I67 -> 0 | J68: =J67 -> 3304.234809 | K68: =K67 -> 0 | L68: =L67 -> 552.5542307
A69: Line Transformer NCP | B69: LTNCP12 | C69: =SUM(D69:W69) -> 480895.5238 | D69: =D68 -> 286431.1054 | E69: =E68 -> 93688.9536 | F69: 96918.67577 | G69: =G68 -> 0 | H69: =H68 -> 0 | I69: =I68 -> 0 | J69: =J68 -> 3304.234809 | K69: =K68 -> 0 | L69: =L68 -> 552.5542307
A70: Secondary NCP | B70: SNCP12 | C70: =SUM(D70:W70) -> 480895.5238 | D70: =D69 -> 286431.1054 | E70: =E69 -> 93688.9536 | F70: =F69 -> 96918.67577 | G70: =G69 -> 0 | H70: =H69 -> 0 | I70: =I69 -> 0 | J70: =J69 -> 3304.234809 | K70: =K69 -> 0 | L70: =L69 -> 552.5542307
